fUSD/lending_fUSD_20241003
["ID","MTS","AMOUNT","RATE_DAILY","PERIOD"]
[339756940,1727950232097,-179.94,0.00010739,2]
[339756941,1727950232107,-177.724375,0.0001079,2]
[339756942,1727950232117,-413.447,0.00010899,2]
[339756943,1727950232128,-160.154,0.00010899,2]
[339756944,1727950232138,-150.0,0.00010899,2]
[339756945,1727950232147,-376.7444905,0.000109,2]
[339756946,1727950232198,-361.519022,0.000109,2]
[339756947,1727950232217,-502.6422875,0.000109,2]
[339756948,1727950232227,-182.1578,0.000109,2]
[339756949,1727950232236,-158.56691584,0.000109,2]
[339756950,1727950232246,-71468.7359,0.000109,2]
[339756951,1727950232255,-2326.4415,0.000109,2]
[339756952,1727950232264,-5364.9738,0.000109,2]
[339756953,1727950232274,-171.68524462,0.000109,2]
[339756954,1727950232284,-3897.676,0.000109,2]
[339756955,1727950232294,-189.32387675,0.000109,2]
[339756956,1727950232302,-402.41297702,0.000109,2]
[339756957,1727950232312,-500.0,0.00010912,2]
[339756958,1727950232322,-497.79,0.00010912,2]
[339756959,1727950232495,-165.18,0.00010959,2]
[339756960,1727950232527,-158.86,0.00010959,2]
[339756961,1727950232537,-499.99,0.00010959,2]
[339756962,1727950232547,-158.56,0.00010959,2]
[339756963,1727950232556,-500.0,0.00010973,2]
[339756964,1727950232566,-1000.0,0.00010986,2]
[339756965,1727950232575,-154.81,0.0001099,2]
[339756966,1727950232585,-10000.0,0.00010993,2]
[339756967,1727950232595,-213.08812142,0.00010999,2]
[339756968,1727950232604,-500.0,0.00010999,2]
[339756969,1727950232613,-500.0,0.00010999,2]
[339756970,1727950232623,-500.0,0.00010999,2]
[339756971,1727950232632,-500.0,0.00010999,2]
[339756972,1727950232642,-151.55128101,0.00010999,2]
[339756973,1727950232652,-230.33517151,0.00010999,2]
[339756974,1727950232663,-500.0,0.00010999,2]
[339756975,1727950232672,-239.06125344,0.00010999,2]
[339756976,1727950232682,-615.0,0.00011,2]
[339756977,1727950232691,-215658.24584488,0.00011,2]
[339756978,1727950237078,300.0,0.00010127,2]
[339756992,1727950238423,-10000.0,0.00010993,2]
[339756994,1727950238432,-2133.33339132,0.00010997,2]
[339756996,1727950238442,-181464.19041572,0.00011,2]
[339756998,1727950238451,-2331.47768654,0.00011,2]
[339757000,1727950238460,-3868709.57746297,0.00011,2]
[339757002,1727950238472,-966598.58861897,0.00011,2]
[339757004,1727950238483,-5723.56787356,0.00011,2]
[339757009,1727950238514,-1733.45721338,0.00011,2]
[339757011,1727950238525,-72851.66355887,0.00011,2]
[339757013,1727950238536,-140533.99345,0.00011,2]
[339757016,1727950238553,-250.0,0.00011,2]
[339757018,1727950238572,-10000.0,0.00011,2]
[339757032,1727950239889,-1819.20996264,0.00010993,2]
[339757035,1727950239970,-1003.50055156,0.00010993,2]
[339757036,1727950239981,-3823.06265533,0.00010993,2]
[339757037,1727950239991,-150.01,0.00010999,2]
[339757038,1727950240002,-3998.82734468,0.00011,2]
[339757039,1727950240023,-644.08472678,0.00011,2]
[339757040,1727950240034,-6139.93073305,0.00011,2]
[339757041,1727950240047,-1180.22303273,0.00011,2]
[339757042,1727950240058,-4424.51532221,0.00011,2]
[339757043,1727950240069,-3277.03018077,0.00011,2]
[339757044,1727950240079,-288.74194674,0.00011,2]
[339757045,1727950240090,-1594.44684523,0.00011,2]
[339757046,1727950240101,-387.98040367,0.00011,2]
[339757047,1727950240112,-699.78547114,0.00011,2]
[339757048,1727950240125,-1520.54503176,0.00011,2]
[339757049,1727950240142,-1666.22132198,0.00011,2]
[339757050,1727950240153,-1424.0,0.00011,2]
[339757051,1727950240165,-276.91061512,0.00011,2]
[339757052,1727950240207,-335.02561298,0.00011,2]
[339757053,1727950240223,-659.91,0.00011,2]
[339757054,1727950240235,-38845.77453441,0.00011,2]
[339757055,1727950240246,-1124.02077438,0.00011,2]
[339757095,1727950240641,-376.955934,0.00011,2]
[339757097,1727950240653,-607.64675005,0.00011,2]
[339757099,1727950240664,-14609.640528,0.00011,2]
[339757102,1727950240675,-1684.39983408,0.00011,2]
[339757104,1727950240687,-6102.1638032,0.00011,2]
[339757106,1727950240697,-4564.99427688,0.00011,2]
[339757108,1727950240708,-419.77238971,0.00011,2]
[339757111,1727950240725,-1656.58520388,0.00011,2]
[339757113,1727950240736,-9681.60895399,0.00011,2]
[339757115,1727950240747,-2042.81024937,0.00011,2]
[339757117,1727950240758,-1216.15843688,0.00011,2]
[339757120,1727950240771,-500.0,0.00011,2]
[339757125,1727950240811,-6350.7067306,0.00011,2]
[339757251,1727950243099,-831.48450349,0.00011,2]
[339757252,1727950243111,-3664.0000002,0.00011,2]
[339757253,1727950243124,-940.096497,0.00011,2]
[339757254,1727950243136,-6246.50973598,0.00011,2]
[339757255,1727950243148,-1252.3653747,0.00011,2]
[339757256,1727950243160,-1599.08934919,0.00011,2]
[339757257,1727950243173,-873.04153788,0.00011,2]
[339757258,1727950243187,-985.07438389,0.00011,2]
[339757259,1727950243199,-455.37695136,0.00011,2]
[339757260,1727950243211,-242336.16456433,0.00011,2]
[339757261,1727950243223,-8170.57666909,0.00011,2]
[339757262,1727950243234,-701.56000045,0.00011,2]
[339757263,1727950243246,-823.12,0.00011,2]
[339757264,1727950243260,-396.372256,0.00011,2]
[339757265,1727950243280,-696.4439991,0.00011,2]
[339757266,1727950243297,-3169.21683686,0.00011,2]
[339757267,1727950243308,-463.29586362,0.00011,2]
[339757268,1727950243319,-327.27947329,0.00011,2]
[339757269,1727950243343,-1570.55517767,0.00011,2]
[339757270,1727950243354,-1389.0,0.00011,2]
[339757271,1727950243366,-748.63230573,0.00011,2]
[339757272,1727950243377,-286.93626806,0.00011,2]
[339757273,1727950243406,-477183.1249072,0.00011,2]
[339757276,1727950245946,-313.06330969,0.00011,2]
[339757277,1727950245958,-234.93669031,0.00011,2]
[339757278,1727950245968,-929.69657433,0.00011,2]
[339757280,1727950245990,-580.59172386,0.00011,2]
[339757281,1727950246002,-1001.35375168,0.00011,2]
[339757282,1727950246014,-3151.08700003,0.00011,2]
[339757283,1727950246037,-20944.7951398,0.00011,2]
[339757284,1727950246202,-1367.99179144,0.00011,2]
[339757285,1727950246216,-1058.70623904,0.00011,2]
[339757286,1727950246227,-276.345,0.00011,2]
[339757287,1727950246258,-664.41391343,0.00011,2]
[339757288,1727950246270,-300.0,0.00011,2]
[339757289,1727950246281,-573.27155235,0.00011,2]
[339757292,1727950554901,187.74,0.00010218,2]
[339757293,1727950573159,748.93,8.3e-05,2]
[339757294,1727950595102,296.54,0.00010204,2]
[339757295,1727950693827,23900.0,0.00010191,2]
[339757296,1727950696606,719.9,0.00010191,2]
[339757297,1727950737856,582.48,0.00010168,2]
[339757298,1727950745661,171.77,0.00010134,2]
[339757299,1727950868014,1177.97,0.00010067,2]
[339757300,1727950975001,250.0,9.947e-05,2]
[339757302,1727950998574,500.0,9.867e-05,2]
[339757303,1727951019523,1000.0,9.935e-05,2]
[339757304,1727951025882,250.0,9.935e-05,2]
[339757305,1727951058940,150.0,9.884e-05,2]
[339757306,1727951061220,451.05,9.884e-05,2]
[339757307,1727951122736,711.48,8.219e-05,2]
[339757308,1727951129262,548.27,9.861e-05,2]
[339757309,1727951156430,4511.26943694,6.94e-05,2]
[339757310,1727951156459,3545.96321756,6.94e-05,2]
[339757311,1727951168189,175.54,9.852e-05,2]
[339757312,1727951207756,20138.56106062,9.823e-05,2]
[339757313,1727951207782,3761.43893938,9.823e-05,2]
[339757317,1727951256136,408.5,9.824e-05,2]
[339757350,1727951432229,-711.48,0.00010469,2]
[339757351,1727951432239,-1994.01053353,0.000106,2]
[339757352,1727951432251,-1317.00166647,0.000106,2]
[339757353,1727951432260,-815.33051589,0.000106,2]
[339757354,1727951432363,-282.66948411,0.000106,2]
[339757355,1727951432372,-1005.0,0.000106,2]
[339757356,1727951432383,-1930.0,0.000106,2]
[339757357,1727951432393,-300.0,0.00010687,2]
[339757359,1727951432403,-1500.0,0.00010688,2]
[339757361,1727951432412,-150.0,0.00010699,2]
[339757363,1727951432421,-1000.0,0.000107,2]
[339757365,1727951432430,-1014.0,0.000107,2]
[339757367,1727951432439,-150.0,0.00010708,2]
[339757368,1727951432448,-150.0,0.0001071,2]
[339757370,1727951432457,-150.0,0.00010714,2]
[339757371,1727951432468,-152.22923058,0.00010719,2]
[339757372,1727951432477,-499.99,0.00010721,2]
[339757373,1727951432487,-1165.19,0.00010721,2]
[339757374,1727951432501,-222.0,0.00010721,2]
[339757375,1727951432510,-1490.0,0.00010725,2]
[339757376,1727951432520,-150.0,0.00010726,2]
[339757377,1727951432529,-150.0,0.00010726,2]
[339757378,1727951432540,-150.0,0.00010727,2]
[339757379,1727951432550,-150.0,0.00010728,2]
[339757380,1727951432561,-150.0,0.0001073,2]
[339757381,1727951432574,-150.0,0.00010732,2]
[339757382,1727951432583,-150.0,0.00010734,2]
[339757383,1727951432593,-150.0,0.00010735,2]
[339757384,1727951432603,-150.0,0.00010736,2]
[339757385,1727951432612,-1500.0,0.00010736,2]
[339757386,1727951432622,-150.0,0.00010738,2]
[339757387,1727951432631,-150.0,0.00010738,2]
[339757388,1727951432641,-150.0,0.0001074,2]
[339757389,1727951432651,-150.0,0.0001074,2]
[339757390,1727951432661,-150.0,0.00010743,2]
[339757391,1727951432671,-150.0,0.00010746,2]
[339757392,1727951432681,-150.0,0.00010746,2]
[339757393,1727951432691,-150.0,0.00010747,2]
[339757394,1727951432700,-150.0,0.00010748,2]
[339757395,1727951432710,-150.0,0.00010748,2]
[339757396,1727951432723,-1500.0,0.00010749,2]
[339757397,1727951432732,-150.0,0.00010753,2]
[339757398,1727951432741,-150.0,0.00010753,2]
[339757399,1727951432751,-258.49970085,0.00010754,2]
[339757400,1727951432760,-150.0,0.00010757,2]
[339757401,1727951432770,-150.0,0.0001076,2]
[339757402,1727951432780,-150.0,0.00010761,2]
[339757403,1727951432790,-150.0,0.00010764,2]
[339757404,1727951432799,-150.0,0.00010765,2]
[339757405,1727951432808,-150.0,0.00010766,2]
[339757406,1727951432818,-150.0,0.00010767,2]
[339757407,1727951432828,-150.0,0.00010768,2]
[339757408,1727951432837,-150.0,0.0001077,2]
[339757409,1727951432847,-150.0,0.00010771,2]
[339757410,1727951432856,-150.0,0.00010772,2]
[339757411,1727951432865,-150.0,0.00010773,2]
[339757412,1727951432875,-150.0,0.00010774,2]
[339757413,1727951432884,-273.75523144,0.00010778,2]
[339757414,1727951432893,-150.0,0.0001078,2]
[339757415,1727951432903,-150.0,0.00010781,2]
[339757416,1727951432913,-150.0,0.00010781,2]
[339757417,1727951432923,-190.7866401,0.00010783,2]
[339757418,1727951432932,-150.0,0.00010786,2]
[339757419,1727951432942,-150.0,0.00010787,2]
[339757420,1727951432951,-150.0,0.00010789,2]
[339757421,1727951432961,-150.0,0.00010789,2]
[339757422,1727951432972,-150.0,0.00010791,2]
[339757423,1727951432982,-150.0,0.00010794,2]
[339757424,1727951432991,-150.0,0.00010795,2]
[339757425,1727951433000,-358.47,0.000108,2]
[339757426,1727951433010,-150.0,0.000108,2]
[339757427,1727951433019,-358.47,0.000108,2]
[339757428,1727951433029,-555.02,0.000108,2]
[339757429,1727951433039,-428.71,0.000108,2]
[339757430,1727951433049,-150.0,0.000108,2]
[339757431,1727951433058,-846.26,0.000108,2]
[339757432,1727951433068,-150.0,0.000108,2]
[339757433,1727951433079,-304.62,0.000108,2]
[339757434,1727951433089,-358.47,0.000108,2]
[339757435,1727951433099,-449.89,0.000108,2]
[339757436,1727951433108,-754.03,0.000108,2]
[339757437,1727951433118,-150.0,0.00010802,2]
[339757438,1727951433127,-150.0,0.00010803,2]
[339757439,1727951433136,-1500.0,0.00010803,2]
[339757440,1727951433146,-1500.0,0.00010804,2]
[339757441,1727951433156,-150.0,0.00010809,2]
[339757442,1727951433166,-1500.0,0.00010811,2]
[339757443,1727951433175,-150.0,0.00010811,2]
[339757444,1727951433184,-150.0,0.00010814,2]
[339757445,1727951433193,-150.0,0.00010815,2]
[339757446,1727951433203,-150.0,0.00010815,2]
[339757447,1727951433213,-150.0,0.00010815,2]
[339757448,1727951433223,-150.0,0.00010816,2]
[339757449,1727951433233,-255.29115162,0.00010817,2]
[339757450,1727951433243,-150.0,0.00010819,2]
[339757451,1727951433253,-150.0,0.00010827,2]
[339757452,1727951433263,-1500.0,0.00010828,2]
[339757453,1727951433272,-150.0,0.00010828,2]
[339757454,1727951433282,-150.0,0.00010828,2]
[339757455,1727951433292,-150.0,0.00010836,2]
[339757456,1727951433301,-150.0,0.00010838,2]
[339757457,1727951433310,-150.0,0.00010839,2]
[339757458,1727951433320,-150.0,0.0001084,2]
[339757459,1727951433330,-150.0,0.00010841,2]
[339757460,1727951433340,-150.0,0.00010845,2]
[339757461,1727951433350,-150.0,0.00010846,2]
[339757462,1727951433359,-150.0,0.00010847,2]
[339757463,1727951433369,-150.0,0.00010848,2]
[339757464,1727951433379,-150.0,0.00010849,2]
[339757465,1727951433388,-150.0,0.00010849,2]
[339757466,1727951433397,-150.0,0.00010852,2]
[339757467,1727951433406,-150.0,0.00010852,2]
[339757468,1727951433416,-1500.0,0.00010853,2]
[339757469,1727951433426,-150.0,0.00010857,2]
[339757470,1727951433436,-150.0,0.00010859,2]
[339757471,1727951433445,-150.0,0.00010859,2]
[339757472,1727951433455,-150.0,0.00010865,2]
[339757473,1727951433466,-150.0,0.00010865,2]
[339757474,1727951433475,-150.0,0.00010867,2]
[339757475,1727951433486,-150.0,0.00010869,2]
[339757476,1727951433497,-1500.0,0.0001087,2]
[339757477,1727951433507,-150.0,0.00010875,2]
[339757478,1727951433516,-150.0,0.00010879,2]
[339757479,1727951433527,-150.0,0.0001088,2]
[339757480,1727951433537,-379.08946923,0.0001088,2]
[339757481,1727951433546,-150.0,0.00010881,2]
[339757482,1727951433555,-150.0,0.00010883,2]
[339757483,1727951433564,-150.0,0.00010885,2]
[339757484,1727951433575,-150.0,0.00010886,2]
[339757485,1727951433585,-150.0,0.00010889,2]
[339757486,1727951433594,-150.0,0.00010889,2]
[339757487,1727951433604,-918.0,0.0001089,2]
[339757488,1727951433614,-150.0,0.00010895,2]
[339757489,1727951433623,-1500.0,0.00010896,2]
[339757490,1727951433633,-150.0,0.00010899,2]
[339757491,1727951433643,-150.0,0.00010899,2]
[339757492,1727951433653,-150.0,0.00010899,2]
[339757493,1727951433662,-150.0,0.000109,2]
[339757494,1727951433672,-428.71,0.000109,2]
[339757495,1727951433681,-150.0,0.000109,2]
[339757496,1727951433691,-150.0,0.000109,2]
[339757497,1727951433700,-358.47,0.000109,2]
[339757498,1727951433709,-150.0,0.000109,2]
[339757499,1727951433720,-428.71,0.000109,2]
[339757500,1727951433729,-150.0,0.000109,2]
[339757501,1727951433739,-150.0,0.000109,2]
[339757502,1727951433749,-150.0,0.000109,2]
[339757503,1727951433759,-358.47,0.000109,2]
[339757504,1727951433768,-150.0,0.000109,2]
[339757505,1727951433778,-302.63,0.000109,2]
[339757506,1727951433787,-358.47,0.000109,2]
[339757507,1727951433797,-371.35,0.000109,2]
[339757508,1727951433807,-424.9,0.000109,2]
[339757509,1727951433816,-357.38,0.000109,2]
[339757510,1727951433825,-150.0,0.000109,2]
[339757511,1727951433834,-150.0,0.000109,2]
[339757512,1727951433843,-533.85,0.000109,2]
[339757513,1727951433853,-358.47,0.000109,2]
[339757514,1727951433862,-428.71,0.000109,2]
[339757515,1727951433872,-255.56,0.000109,2]
[339757516,1727951433881,-300.0,0.000109,2]
[339757517,1727951433890,-150.0,0.000109,2]
[339757518,1727951433899,-150.0,0.000109,2]
[339757519,1727951433909,-552.37,0.000109,2]
[339757520,1727951433918,-7564.80608152,0.000109,2]
[339757521,1727951433927,-171.68524462,0.000109,2]
[339757522,1727951433936,-1296.0,0.000109,2]
[339757523,1727951433946,-1385.79061698,0.000109,2]
[339757524,1727951433955,-268.275318,0.000109,2]
[339757525,1727951433966,-150.0,0.00010901,2]
[339757526,1727951433976,-150.0,0.00010901,2]
[339757527,1727951433985,-150.0,0.00010902,2]
[339757528,1727951433995,-150.0,0.00010909,2]
[339757529,1727951434004,-150.0,0.00010911,2]
[339757530,1727951434014,-150.0,0.00010911,2]
[339757531,1727951434024,-150.0,0.00010912,2]
[339757532,1727951434033,-150.0,0.00010912,2]
[339757533,1727951434043,-150.0,0.00010914,2]
[339757534,1727951434052,-150.0,0.00010914,2]
[339757535,1727951434063,-150.0,0.00010915,2]
[339757536,1727951434072,-150.0,0.00010917,2]
[339757537,1727951434081,-150.0,0.00010919,2]
[339757538,1727951434091,-150.0,0.0001092,2]
[339757539,1727951434101,-150.0,0.00010928,2]
[339757540,1727951434110,-150.0,0.00010928,2]
[339757541,1727951434120,-150.0,0.00010928,2]
[339757542,1727951434129,-150.0,0.0001093,2]
[339757543,1727951434139,-150.0,0.00010931,2]
[339757544,1727951434149,-1512.89241477,0.00010932,2]
[339757545,1727951434159,-1500.0,0.00010934,2]
[339757546,1727951434168,-150.0,0.00010935,2]
[339757547,1727951434177,-150.0,0.00010936,2]
[339757548,1727951434187,-150.0,0.00010937,2]
[339757549,1727951434469,-150.0,0.00010938,2]
[339757550,1727951434480,-150.0,0.0001094,2]
[339757551,1727951434491,-1500.0,0.00010943,2]
[339757552,1727951434501,-150.0,0.00010943,2]
[339757553,1727951434510,-150.0,0.00010947,2]
[339757554,1727951434520,-150.0,0.00010947,2]
[339757555,1727951434531,-150.0,0.00010948,2]
[339757556,1727951434541,-150.0,0.00010951,2]
[339757557,1727951434551,-150.0,0.00010951,2]
[339757558,1727951434561,-1500.0,0.00010951,2]
[339757559,1727951434571,-150.0,0.00010954,2]
[339757560,1727951434580,-428.84181323,0.00010954,2]
[339757561,1727951434594,-1071.15818677,0.00010954,2]
[339757562,1727951434604,-150.0,0.00010955,2]
[339757563,1727951434614,-150.0,0.00010957,2]
[339757564,1727951434623,-165.02,0.00010959,2]
[339757565,1727951434633,-196.99,0.00010959,2]
[339757566,1727951434642,-163.75,0.00010959,2]
[339757567,1727951434653,-150.0,0.00010961,2]
[339757568,1727951434663,-150.0,0.00010962,2]
[339757569,1727951434673,-150.0,0.00010966,2]
[339757570,1727951434683,-150.0,0.00010966,2]
[339757571,1727951434692,-150.0,0.00010966,2]
[339757572,1727951434702,-150.0,0.00010969,2]
[339757573,1727951434712,-150.0,0.00010971,2]
[339757574,1727951434722,-150.0,0.00010971,2]
[339757575,1727951434732,-150.0,0.00010971,2]
[339757576,1727951434741,-74.73999359,0.00010973,2]
[339757577,1727951434753,-425.26000641,0.00010973,2]
[339757578,1727951434763,-413.157,0.00010973,2]
[339757579,1727951434773,-160.116,0.00010973,2]
[339757580,1727951434783,-150.0,0.00010976,2]
[339757581,1727951434792,-150.0,0.00010977,2]
[339757582,1727951434801,-150.0,0.00010978,2]
[339757583,1727951434810,-150.0,0.00010982,2]
[339757584,1727951434820,-154.82,0.0001099,2]
[339757585,1727951434829,-2144.32299412,0.0001099,2]
[339757586,1727951434841,-800.0,0.0001099,2]
[339757593,1727951438215,-2051.00370932,0.0001099,2]
[339757594,1727951438226,-2510.72,0.0001099,2]
[339757595,1727951438390,-663.2,0.0001099,2]
[339757596,1727951438401,-582.24356216,0.0001099,2]
[339757597,1727951438418,-6638.38017415,0.0001099,2]
[339757598,1727951438427,-150.0,0.0001099,2]
[339757599,1727951438436,-150.0,0.0001099,2]
[339757600,1727951438446,-150.0,0.00010991,2]
[339757601,1727951438455,-150.0,0.00010992,2]
[339757602,1727951438464,-150.0,0.00010995,2]
[339757603,1727951438475,-150.0,0.00010996,2]
[339757604,1727951438484,-276.16624283,0.00010999,2]
[339757605,1727951438497,-39987.972,0.00010999,2]
[339757606,1727951438506,-321.17917049,0.00010999,2]
[339757607,1727951438516,-161.23462006,0.00010999,2]
[339757608,1727951438525,-381301.78239761,0.00011,2]
[339757609,1727951438536,-2119.1085921,0.00011,2]
[339757610,1727951438545,-1290141.8678899,0.00011,2]
[339757616,1727951438597,-9030.25868716,0.00011,2]
[339757620,1727951440254,-250.21908707,0.00011,2]
[339757621,1727951440266,-5226.31357745,0.00011,2]
[339757622,1727951440276,-1170.15,0.00011,2]
[339757660,1727951441010,-2546.88,0.00011,2]
[339757663,1727951441035,-1493.397668,0.00011,2]
[339757689,1727951443198,-3041.5,0.00011,2]
[339757690,1727951443428,-242336.16456433,0.00011,2]
[339757691,1727951443440,-1388.82081271,0.00011,2]
[339757692,1727951443473,-589.97098,0.00011,2]
[339757701,1727951505235,1624.06,0.0001,2]
[339757702,1727951660865,262.01,0.00010224,2]
[339757703,1727951674145,768.24,8.219e-05,2]
[339757704,1727951735795,507.43872926,0.00010129,2]
[339757705,1727951780736,191.37,9.616e-05,2]
[339757706,1727951817999,23600.18,9.631e-05,2]
[339757723,1727952045341,200.0,9.696e-05,2]
[339757724,1727952114436,250.0,9.751e-05,2]
[339757725,1727952183277,250.0,9.751e-05,2]
[339757726,1727952311458,150.0,9.888e-05,2]
[339757727,1727952314404,150.0,9.888e-05,2]
[339757728,1727952322560,150.0,9.888e-05,2]
[339757729,1727952324728,150.0,9.888e-05,2]
[339757730,1727952325250,1000.0,9.735e-05,2]
[339757731,1727952329681,729.82,8.219e-05,2]
[339757732,1727952333183,150.0,9.888e-05,2]
[339757733,1727952344933,150.77200402,9.888e-05,2]
[339757737,1727952489903,575.92,9.737e-05,2]
[339757754,1727952632314,-262.01,0.00010226,2]
[339757756,1727952632323,-262.01,0.00010229,2]
[339757758,1727952632332,-262.01,0.00010232,2]
[339757760,1727952632342,-262.01,0.00010234,2]
[339757761,1727952632350,-262.01,0.00010237,2]
[339757763,1727952632360,-262.01,0.0001024,2]
[339757764,1727952632369,-262.01,0.00010243,2]
[339757765,1727952632379,-262.01,0.00010245,2]
[339757766,1727952632388,-262.01,0.00010248,2]
[339757767,1727952632397,-307.32,0.0001025,2]
[339757768,1727952632407,-1977.28,0.0001025,2]
[339757769,1727952632416,-325.02,0.0001025,2]
[339757770,1727952632425,-262.01,0.00010251,2]
[339757771,1727952632435,-262.01,0.00010253,2]
[339757772,1727952632444,-150.0,0.00010254,2]
[339757773,1727952632453,-262.01,0.00010256,2]
[339757774,1727952632462,-262.01,0.00010259,2]
[339757775,1727952632472,-262.01,0.00010261,2]
[339757776,1727952632481,-262.01,0.00010264,2]
[339757777,1727952632490,-262.01,0.00010267,2]
[339757778,1727952632499,-262.01,0.00010269,2]
[339757779,1727952632508,-262.01,0.00010272,2]
[339757780,1727952632517,-262.01,0.00010275,2]
[339757781,1727952632526,-150.0,0.00010437,2]
[339757782,1727952632535,-729.82,0.00010462,2]
[339757783,1727952632544,-150.0,0.0001062,2]
[339757784,1727952632554,-150.0,0.00010706,2]
[339757785,1727952632563,-150.0,0.00010729,2]
[339757786,1727952632572,-150.0,0.0001073,2]
[339757787,1727952632581,-150.0,0.00010733,2]
[339757788,1727952632591,-150.0,0.00010734,2]
[339757789,1727952632600,-150.0,0.00010734,2]
[339757790,1727952632609,-150.0,0.00010735,2]
[339757791,1727952632619,-150.0,0.00010736,2]
[339757792,1727952632628,-150.0,0.0001074,2]
[339757793,1727952632637,-150.0,0.00010742,2]
[339757794,1727952632646,-150.0,0.00010742,2]
[339757795,1727952632655,-150.0,0.00010743,2]
[339757796,1727952632665,-150.0,0.00010744,2]
[339757797,1727952632674,-1500.0,0.00010747,2]
[339757798,1727952632683,-150.0,0.00010749,2]
[339757799,1727952632693,-150.0,0.00010749,2]
[339757800,1727952632703,-150.0,0.00010751,2]
[339757803,1727952632713,-1500.0,0.00010752,2]
[339757805,1727952632722,-150.0,0.00010755,2]
[339757807,1727952632731,-150.0,0.00010755,2]
[339757809,1727952632740,-1500.0,0.00010755,2]
[339757811,1727952632749,-150.0,0.0001076,2]
[339757813,1727952632758,-150.0,0.00010762,2]
[339757815,1727952632768,-150.0,0.00010765,2]
[339757817,1727952632777,-150.0,0.00010766,2]
[339757819,1727952632787,-150.0,0.00010766,2]
[339757821,1727952632796,-150.0,0.00010766,2]
[339757823,1727952632805,-150.0,0.00010769,2]
[339757825,1727952632813,-1063.00554323,0.0001077,2]
[339757827,1727952632828,-436.99445677,0.0001077,2]
[339757829,1727952632837,-150.0,0.00010771,2]
[339757830,1727952632846,-150.0,0.00010772,2]
[339757832,1727952632856,-150.0,0.00010772,2]
[339757833,1727952632867,-150.0,0.00010774,2]
[339757834,1727952632877,-150.0,0.00010775,2]
[339757835,1727952632889,-150.0,0.00010778,2]
[339757836,1727952632901,-150.0,0.0001078,2]
[339757837,1727952632910,-1500.0,0.00010785,2]
[339757838,1727952632920,-150.0,0.00010786,2]
[339757839,1727952632929,-1500.0,0.00010786,2]
[339757840,1727952632938,-150.0,0.00010787,2]
[339757841,1727952632948,-150.0,0.00010794,2]
[339757842,1727952632959,-150.0,0.00010794,2]
[339757843,1727952632968,-150.0,0.00010795,2]
[339757844,1727952632978,-150.0,0.00010802,2]
[339757845,1727952632987,-150.0,0.00010807,2]
[339757846,1727952632997,-107.65419021,0.0001081,2]
[339757847,1727952633009,-42.34580979,0.0001081,2]
[339757848,1727952633019,-1500.0,0.00010815,2]
[339757849,1727952633029,-150.0,0.00010817,2]
[339757850,1727952633040,-150.0,0.00010817,2]
[339757851,1727952633050,-150.0,0.00010817,2]
[339757852,1727952633061,-150.0,0.00010818,2]